bitfinex-derivatives/quotes_BTCF0:USTF0_20241226
["timestamp","ask_amount","ask_price","bid_price","bid_amount"]
[1735219911096,0.2741,95459.0,95440.0,0.24787219]
[1735219911389,0.052435,95457.0,95440.0,0.1424]
[1735219912091,0.052435,95457.0,95440.0,0.1434]
[1735219912676,0.052435,95457.0,95440.0,0.1424]
[1735219912876,0.052435,95457.0,95440.0,0.1434]
[1735219913388,0.052435,95456.0,95440.0,0.001]
[1735219915688,0.2741,95459.0,95440.0,0.001]
[1735219915689,0.10547219,95450.0,95440.0,0.001]
[1735219915895,0.052443,95442.0,95440.0,0.001]
[1735219917789,0.052443,95442.0,95427.0,0.05245]
[1735219917996,0.052443,95442.0,95440.0,0.001]
[1735219918198,0.052439,95449.0,95440.0,0.001]
[1735219918688,0.052439,95448.0,95440.0,0.001]
[1735219920187,0.12008003,95450.0,95440.0,0.001]
[1735219920590,0.052439,95449.0,95440.0,0.001]
[1735219921002,0.052441,95445.0,95440.0,0.001]
[1735219922300,0.12008003,95450.0,95440.0,0.001]
[1735219923399,0.052441,95445.0,95440.0,0.001]
[1735219924499,0.12008003,95450.0,95440.0,0.001]
[1735219924803,0.17251803,95450.0,95440.0,0.001]
[1735219925101,0.12008003,95450.0,95440.0,0.001]
[1735219925300,0.05244,95446.0,95440.0,0.001]
[1735219925501,0.12008003,95450.0,95429.0,0.00157162]
[1735219925797,0.052445,95438.0,95429.0,0.00157162]
[1735219926002,0.474245,95437.0,95429.0,0.00157162]
[1735219926698,0.10547219,95430.0,95429.0,0.00157162]
[1735219927001,0.42264,95437.0,95429.0,0.00157162]
[1735219927194,0.4218,95437.0,95429.0,0.00157162]
[1735219927595,0.10547219,95430.0,95429.0,0.00157162]
[1735219928400,0.052449,95431.0,95429.0,0.00657162]
[1735219928601,0.052449,95431.0,95429.0,0.005]
[1735219928804,0.05245,95429.0,95415.0,0.35224]
[1735219929402,0.10547219,95425.0,95415.0,0.35224]
[1735219929803,0.10547219,95425.0,95400.0,0.10157204]
[1735219930104,0.10547219,95410.0,95400.0,0.10157204]
[1735219930314,0.052462,95406.0,95400.0,0.1]
[1735219930603,0.41368001,95409.0,95400.0,0.1]
[1735219930804,0.052462,95408.0,95400.0,0.1]
[1735219931393,0.052462,95408.0,95400.0,0.105]
[1735219932205,0.052462,95408.0,95400.0,0.1]
[1735219932206,0.053462,95408.0,95400.0,0.1]
[1735219932706,0.057462,95408.0,95400.0,0.1]
[1735219933207,0.005,95408.0,95380.0,0.00157267]
[1735219933508,0.10547219,95395.0,95380.0,0.00157267]
[1735219934409,0.10547219,95395.0,95380.0,0.00557267]
[1735219934609,0.10547219,95395.0,95387.0,0.052472]
[1735219935104,0.10547219,95395.0,95388.0,0.1433]
[1735219935701,0.10547219,95395.0,95380.0,0.01157267]
[1735219935897,0.10547219,95395.0,95387.0,0.003]
[1735219936104,0.052466,95399.0,95387.0,0.003]
[1735219936608,0.052466,95399.0,95380.0,0.004]
[1735219936609,0.052466,95399.0,95388.0,0.002]
[1735219936908,0.10547219,95398.0,95388.0,0.002]
[1735219937506,0.10547219,95398.0,95376.0,0.052479]
[1735219937709,0.10547219,95390.0,95387.0,0.005]
[1735219937910,0.10547219,95397.0,95387.0,0.005]
[1735219938404,0.10547219,95397.0,95388.0,0.002]
[1735219939409,0.10547219,95397.0,95388.0,0.004]
[1735219940016,0.10547219,95397.0,95388.0,0.002]
[1735219940715,0.10547219,95397.0,95388.0,0.004]
[1735219940912,0.01451596,95399.0,95388.0,0.004]
[1735219941216,0.052453,95424.0,95402.0,0.052464]
[1735219941601,0.052453,95424.0,95399.0,0.10547219]
[1735219941602,0.10547219,95420.0,95399.0,0.10547219]
[1735219941807,0.42804,95429.0,95409.0,0.05246]
[1735219941808,0.28554,95429.0,95409.0,0.05246]
[1735219942011,0.2847,95429.0,95410.0,0.32656]
[1735219942314,0.10547219,95420.0,95410.0,0.2741]
[1735219942514,0.10547219,95430.0,95410.0,0.37957219]
[1735219942913,0.007,95429.0,95410.0,0.37957219]
[1735219943117,0.007,95429.0,95410.0,0.2741]
[1735219943319,0.052454,95422.0,95410.0,0.1338]
[1735219943819,0.008,95420.0,95410.0,0.1348]
[1735219945218,0.35256,95479.0,95410.0,0.1338]
[1735219945424,0.008,95422.0,95410.0,0.24027219]
[1735219945917,0.008,95420.0,95410.0,0.24027219]
[1735219946515,0.002,95420.0,95410.0,0.23927219]
[1735219947533,0.002,95420.0,95411.0,0.1359]
[1735219948337,0.01598216,95420.0,95411.0,0.1359]
[1735219948538,0.01598216,95420.0,95414.0,0.052458]
[1735219948729,0.01798216,95420.0,95414.0,0.052458]
[1735219949126,0.01598216,95420.0,95414.0,0.052458]
[1735219949532,0.01798216,95420.0,95414.0,0.052458]
[1735219949734,0.2921,95439.0,95411.0,0.1359]
[1735219949927,0.002,95420.0,95414.0,0.011]
[1735219950131,0.001,95420.0,95414.0,0.063458]
[1735219950335,0.004,95420.0,95414.0,0.063458]
[1735219950638,0.004,95420.0,95417.0,0.052456]
[1735219950943,0.004,95420.0,95418.0,0.1357]
[1735219951829,0.003,95420.0,95418.0,0.1357]
[1735219952541,0.011,95420.0,95418.0,0.1367]
[1735219953937,0.011,95420.0,95418.0,0.189155]
[1735219954141,0.02471309,95420.0,95418.0,0.189155]
[1735219954940,0.4224,95459.0,95440.0,0.10547219]
[1735219955145,0.2854,95459.0,95440.0,0.10547219]
[1735219955336,0.2854,95459.0,95449.0,0.10547219]
[1735219956142,0.3014,95459.0,95449.0,0.10547219]
[1735219956543,0.02947982,95459.0,95455.0,0.01]
[1735219956841,0.02147982,95459.0,95455.0,0.01]
[1735219957046,0.02147982,95459.0,95449.0,0.001]
[1735219957047,0.02247982,95459.0,95449.0,0.001]
[1735219957339,0.03047982,95459.0,95449.0,0.002]
[1735219957543,0.2887,95458.0,95449.0,0.002]
[1735219958542,0.0525,95510.0,95449.0,0.002]
[1735219958739,0.10547219,95460.0,95449.0,0.002]
[1735219959137,0.10547219,95460.0,95449.0,0.001]
[1735219959334,0.01,95459.0,95455.0,0.002]
[1735219959734,0.31,95459.0,95421.0,0.1415]
[1735219959932,0.10547219,95431.0,95421.0,0.1415]
[1735219960185,0.10547219,95431.0,95420.0,0.00157213]
[1735219960347,0.10547219,95431.0,95419.0,0.35252]
[1735219960543,0.35252,95486.0,95419.0,0.35252]
[1735219960743,0.10547219,95430.0,95420.0,0.1741]
[1735219961642,0.2597,95429.0,95420.0,0.1741]
[1735219963444,0.2597,95429.0,95407.0,0.1741]
[1735219964742,0.2597,95429.0,95407.0,0.1751]
[1735219965348,0.10547219,95420.0,95407.0,0.1751]
[1735219966852,0.11906929,95420.0,95407.0,0.1751]
[1735219967947,0.11906929,95420.0,95408.0,0.1741]
[1735219968843,0.11906929,95420.0,95406.0,0.1741]
[1735219969052,0.11906929,95420.0,95408.0,0.001]
[1735219969251,0.11906929,95420.0,95406.0,0.17210948]
[1735219969442,0.11906929,95420.0,95406.0,0.16110948]
[1735219969843,0.11906929,95420.0,95406.0,0.14310956]
[1735219970245,0.11906929,95420.0,95400.0,0.10157232]
[1735219970547,0.10547219,95410.0,95400.0,0.10157232]
[1735219971253,0.10547219,95410.0,95406.0,0.001]
[1735219971451,0.10547219,95416.0,95406.0,0.001]
[1735219972044,0.10547219,95416.0,95401.0,0.1741]
[1735219972853,0.10547219,95416.0,95406.0,0.001]
[1735219974351,0.10547219,95416.0,95400.0,0.099]
[1735219974557,0.10547219,95410.0,95401.0,0.002]
[1735219975258,0.10547219,95410.0,95406.0,0.001]
[1735219975757,0.10547219,95410.0,95400.0,0.07799191]
[1735219976056,0.10547219,95410.0,95401.0,0.002]
[1735219977456,0.10547219,95410.0,95400.0,0.07799191]
[1735219977658,0.10547219,95410.0,95400.0,0.07999191]
[1735219978361,0.10547219,95410.0,95401.0,0.002]
[1735219978745,0.10547219,95410.0,95394.0,0.12739848]
[1735219979358,0.10547219,95404.0,95394.0,0.12739848]
[1735219979559,0.10547219,95404.0,95400.0,0.002]
[1735219979759,0.10547219,95410.0,95400.0,0.002]
[1735219981061,0.10547219,95410.0,95394.0,0.12739848]
[1735219981282,0.10547219,95410.0,95397.0,0.01]
[1735219981851,0.10547219,95410.0,95394.0,0.12739848]
[1735219982163,0.01687276,95416.0,95400.0,0.002]
[1735219982164,0.10547219,95404.0,95400.0,0.002]
[1735219982355,0.10547219,95410.0,95400.0,0.002]
[1735219982757,0.10547219,95410.0,95397.0,0.003]
[1735219983057,0.10547219,95410.0,95397.0,0.002]
[1735219984557,0.10547219,95410.0,95400.0,0.002]
[1735219985263,0.10547219,95410.0,95394.0,0.12739848]
[1735219985468,0.10547219,95404.0,95397.0,0.002]
[1735219985761,0.10547219,95404.0,95397.0,0.003]
[1735219986266,0.10547219,95404.0,95400.0,0.002]
[1735219986456,0.10547219,95410.0,95400.0,0.002]
[1735219986655,0.10547219,95410.0,95394.0,0.11339857]
[1735219986656,0.21094438,95410.0,95391.0,0.1381]
[1735219986858,0.21094438,95402.0,95391.0,0.1351]
[1735219987062,0.21094438,95402.0,95391.0,0.04593629]
[1735219987258,0.21094438,95402.0,95338.0,0.1605]
[1735219987259,0.15792718,95401.0,95338.0,0.1605]
[1735219987459,0.10547219,95366.0,95340.0,0.10547219]
[1735219987655,0.10547219,95366.0,95350.0,0.10547219]
[1735219987857,0.10547219,95400.0,95341.0,0.1605]
[1735219988063,0.10547219,95380.0,95356.0,0.10547219]
[1735219988266,0.10547219,95390.0,95370.0,0.10547219]
[1735219988566,0.10547219,95390.0,95360.0,0.10547219]
[1735219989563,0.10647219,95390.0,95360.0,0.10547219]
[1735219990165,0.10647219,95390.0,95361.0,0.1438]
[1735219990465,0.10647219,95390.0,95361.0,0.4108]
[1735219990767,0.12330315,95390.0,95361.0,0.4108]
[1735219991067,0.12230315,95390.0,95361.0,0.4108]
[1735219991953,0.12230315,95390.0,95361.0,0.4118]
[1735219992366,0.01683096,95390.0,95370.0,0.10547219]
[1735219992564,0.10547219,95400.0,95370.0,0.10547219]
[1735219993263,0.3467,95409.0,95370.0,0.10547219]
[1735219993461,0.10547219,95400.0,95370.0,0.10547219]
[1735219993659,0.10547219,95390.0,95370.0,0.10547219]
[1735219994070,0.10547219,95390.0,95361.0,0.4118]
[1735219994260,0.10647219,95390.0,95361.0,0.4108]
[1735219994969,0.10547219,95380.0,95361.0,0.4108]
[1735219995266,0.10547219,95380.0,95361.0,0.4118]
[1735219996360,0.10547219,95390.0,95361.0,0.4118]
[1735219996870,0.10547219,95380.0,95361.0,0.4118]
[1735219997170,0.10547219,95390.0,95361.0,0.4118]
[1735219997571,0.1562819,95388.0,95361.0,0.4118]
[1735219997767,0.1562819,95388.0,95361.0,0.4108]
[1735219997968,0.10547219,95380.0,95361.0,0.4118]
[1735220000266,0.10547219,95371.0,95361.0,0.4118]
[1735220001776,0.10547219,95371.0,95341.0,0.00157334]
[1735220001777,0.2283704,95371.0,95341.0,0.00157334]
[1735220001982,0.10547219,95364.0,95342.0,0.1443]
[1735220002169,0.10547219,95370.0,95343.0,0.1366]
[1735220002668,0.10547219,95370.0,95344.0,0.1443]
[1735220004183,0.10547219,95370.0,95344.0,0.1473]
[1735220004384,0.10547219,95360.0,95344.0,0.1473]
[1735220004689,0.10547219,95360.0,95344.0,0.1503]
[1735220004887,0.10547219,95360.0,95345.0,0.1414]
[1735220006388,0.10547219,95360.0,95345.0,0.1444]
[1735220007478,0.10547219,95360.0,95345.0,0.1474]
[1735220007786,0.12286023,95360.0,95345.0,0.1474]
[1735220008783,0.12286023,95360.0,95353.0,6.9e-05]
[1735220010284,0.12286023,95360.0,95353.0,0.001069]
[1735220011187,0.12286023,95360.0,95345.0,0.1444]
[1735220011388,0.12386023,95360.0,95345.0,0.1444]
[1735220011584,0.12386023,95360.0,95345.0,0.1414]
[1735220012790,0.12286023,95360.0,95345.0,0.1414]
[1735220013091,0.12486023,95360.0,95345.0,0.1414]
[1735220013395,0.12486023,95360.0,95345.0,0.1424]
[1735220013587,0.12286023,95360.0,95345.0,0.1424]
[1735220013890,0.12486023,95360.0,95345.0,0.1424]
[1735220014093,0.01938804,95360.0,95345.0,0.1424]
[1735220014487,0.12486023,95360.0,95345.0,0.1424]
[1735220016492,0.12286023,95360.0,95345.0,0.1424]
[1735220016792,0.12486023,95360.0,95345.0,0.1424]
[1735220018293,0.12486023,95360.0,95345.0,0.001]
[1735220018794,0.12486023,95360.0,95344.0,0.2774]
[1735220019094,0.12486023,95360.0,95345.0,0.001]
[1735220019589,0.12286023,95360.0,95345.0,0.001]
[1735220019789,0.12486023,95360.0,95345.0,0.001]
[1735220020296,0.12486023,95360.0,95346.0,0.2661]
[1735220020794,0.12286023,95360.0,95346.0,0.2661]
[1735220020990,0.12586023,95360.0,95346.0,0.2661]
[1735220021195,0.02038804,95360.0,95346.0,0.2661]
[1735220021411,0.12586023,95360.0,95346.0,0.2661]
[1735220021583,0.12286023,95360.0,95346.0,0.2661]
[1735220021789,0.12486023,95360.0,95346.0,0.2671]
[1735220022394,0.40924,95399.0,95350.0,0.10547219]
[1735220022702,0.10547219,95400.0,95370.0,0.10547219]
[1735220022992,0.10547219,95380.0,95371.0,0.2713]
[1735220023296,0.10547219,95390.0,95371.0,0.2713]
[1735220024090,0.006,95380.0,95371.0,0.2723]
[1735220024806,0.006,95390.0,95371.0,0.2733]
[1735220024989,0.11147219,95390.0,95371.0,0.2733]
[1735220025684,0.006,95390.0,95372.0,0.1402]
[1735220026396,0.10547219,95390.0,95372.0,0.1402]
[1735220026598,0.002,95380.0,95372.0,0.1402]
[1735220027699,0.1337,95399.0,95372.0,0.1402]
[1735220027900,0.002,95390.0,95372.0,0.1412]
[1735220028201,0.10747219,95390.0,95372.0,0.1422]
[1735220028398,0.10547219,95382.0,95371.0,0.22372693]
[1735220028599,0.10547219,95382.0,95341.0,0.052498]
[1735220028798,0.10547219,95380.0,95350.0,0.10547219]
[1735220029204,0.15664535,95388.0,95372.0,0.001]
[1735220029502,0.004,95380.0,95372.0,0.002]
[1735220030201,0.10547219,95382.0,95372.0,0.002]
[1735220030703,0.10547219,95382.0,95372.0,0.001]
[1735220030904,0.10547219,95382.0,95340.0,0.15797019]
[1735220031202,0.10547219,95360.0,95335.0,0.052501]
[1735220031400,0.10547219,95360.0,95330.0,0.10547219]
[1735220031595,0.10547219,95360.0,95331.0,0.2735]
[1735220031795,0.10547219,95360.0,95331.0,0.4065]
[1735220032003,0.10547219,95360.0,95331.0,0.7065]
[1735220032998,0.10547219,95360.0,95331.0,0.4065]
[1735220033304,0.10547219,95360.0,95331.0,0.7075]
[1735220033701,0.10547219,95360.0,95331.0,0.4075]
[1735220034995,0.12662555,95360.0,95331.0,0.4075]
[1735220036599,0.10547219,95350.0,95331.0,0.4075]
[1735220036812,0.10547219,95360.0,95331.0,0.4075]
[1735220037598,0.10547219,95360.0,95331.0,0.4065]
[1735220037904,0.10547219,95360.0,95331.0,0.4075]
[1735220039004,0.10547219,95341.0,95331.0,0.4075]
[1735220039198,0.10547219,95341.0,95331.0,0.4065]
[1735220039397,0.10547219,95341.0,95331.0,0.4075]
[1735220039797,0.10547219,95360.0,95331.0,0.460003]
[1735220039997,0.10547219,95360.0,95331.0,0.7065]
[1735220040210,0.15236783,95369.0,95340.0,0.10547219]
[1735220040606,0.10547219,95360.0,95340.0,0.10547219]
[1735220040803,0.02176783,95369.0,95340.0,0.10547219]
[1735220040997,0.2744,95399.0,95350.0,0.10547219]
[1735220040998,0.10547219,95380.0,95350.0,0.10547219]
[1735220041306,0.10547219,95370.0,95351.0,0.456092]
[1735220041609,0.10547219,95380.0,95360.0,0.10547219]
[1735220042111,0.15729313,95397.0,95370.0,0.10547219]
[1735220042417,0.02195603,95397.0,95371.0,0.1405]
[1735220042605,0.02195603,95397.0,95371.0,0.2742]
[1735220042606,0.34303804,95373.0,95371.0,0.2742]
[1735220043512,0.34303804,95373.0,95372.0,0.1312]
[1735220043701,0.36429445,95373.0,95372.0,0.1312]
[1735220044105,0.02125641,95373.0,95372.0,0.1312]
[1735220044305,0.005,95373.0,95372.0,0.1312]
[1735220045707,0.05604483,95373.0,95372.0,0.1312]
[1735220045906,0.05604483,95373.0,95372.0,0.1322]
[1735220046504,0.05604483,95373.0,95372.0,0.1332]
[1735220047495,0.08351413,95373.0,95372.0,0.1332]
[1735220048809,0.08351413,95373.0,95372.0,0.1322]
[1735220049498,0.07851413,95373.0,95372.0,0.1322]
[1735220049708,0.08351413,95373.0,95372.0,0.1322]
[1735220052212,0.08351413,95373.0,95372.0,0.001]
[1735220056099,0.08351413,95373.0,95353.0,0.2712]
[1735220056313,0.10547219,95370.0,95353.0,0.2712]
[1735220056515,0.08351413,95373.0,95353.0,0.2712]
[1735220057409,0.21833155,95361.0,95353.0,0.2722]
[1735220058713,0.4677959,95361.0,95353.0,0.2722]
[1735220059408,0.4697959,95361.0,95353.0,0.2722]
[1735220059627,0.4717959,95361.0,95353.0,0.2722]
[1735220060114,0.24946435,95360.0,95353.0,0.2722]
[1735220060603,0.24946435,95360.0,95354.0,0.052491]
[1735220060813,0.24946435,95360.0,95353.0,0.5722]
[1735220061010,0.24946435,95360.0,95359.0,0.052488]
[1735220061213,0.03162251,95361.0,95359.0,0.052488]
[1735220061408,0.25353258,95361.0,95359.0,0.052488]
[1735220061605,0.05104483,95378.0,95367.0,0.052483]
[1735220061813,0.07804725,95378.0,95368.0,0.15795519]
[1735220062118,0.07804725,95378.0,95368.0,0.40547219]
[1735220062304,0.07804725,95378.0,95375.0,0.052479]
[1735220062514,0.05104483,95377.0,95375.0,0.052479]
[1735220063626,0.008,95378.0,95377.0,0.052478]
[1735220063819,0.005,95378.0,95377.0,0.052478]
[1735220064920,0.21835054,95379.0,95377.0,0.186378]
[1735220065121,0.1383,95397.0,95377.0,0.186378]
[1735220065122,0.18712792,95383.0,95377.0,0.1339]
[1735220065315,0.18712792,95383.0,95381.0,0.052476]
[1735220066416,0.006,95383.0,95381.0,0.053476]
[1735220066615,0.007,95383.0,95381.0,0.054476]
[1735220066813,0.007,95383.0,95382.0,0.1424]
[1735220067016,0.006,95383.0,95382.0,0.1424]
[1735220067215,0.18712792,95386.0,95382.0,0.3029]
[1735220067423,0.18712792,95386.0,95382.0,0.6029]
[1735220067615,0.18712792,95386.0,95382.0,0.3029]
[1735220067817,0.21835054,95399.0,95383.0,0.1605]
[1735220068120,0.15589176,95384.0,95383.0,0.1605]
[1735220068316,0.02724259,95399.0,95396.0,0.052467]
[1735220068620,0.2458495,95404.0,95397.0,0.1334]
[1735220069052,0.004,95399.0,95397.0,0.1334]
[1735220069640,0.02749896,95404.0,95397.0,0.1334]
[1735220069824,0.006,95404.0,95397.0,0.1344]
[1735220070223,0.006,95404.0,95397.0,0.1354]
[1735220070424,0.006,95404.0,95397.0,0.002]
[1735220070624,0.2659,95403.0,95380.0,0.10547219]
[1735220070923,0.10547219,95400.0,95380.0,0.10547219]
[1735220071112,0.1323,95399.0,95380.0,0.10547219]
[1735220071317,0.1323,95399.0,95374.0,0.052479]
[1735220071516,0.1323,95399.0,95373.0,0.1407]
[1735220071720,0.1323,95399.0,95375.0,0.052479]
[1735220071914,0.1323,95399.0,95397.0,0.001]
[1735220072125,0.1323,95399.0,95375.0,0.052479]
[1735220072322,0.1323,95399.0,95380.0,0.10547219]
[1735220073017,0.1323,95399.0,95397.0,0.001]
[1735220073218,0.1323,95399.0,95380.0,0.10547219]
[1735220073615,0.1323,95399.0,95377.0,0.052478]
[1735220073817,0.10547219,95390.0,95369.0,0.052482]
[1735220074126,0.10547219,95380.0,95369.0,0.052482]
[1735220074519,0.1399,95379.0,95360.0,0.052487]
[1735220074917,0.1356,95378.0,95360.0,0.052487]
[1735220075513,0.1356,95378.0,95350.0,0.10547219]
[1735220075710,0.10547219,95373.0,95355.0,0.05406291]
[1735220076018,0.10547219,95373.0,95363.0,0.35372]
[1735220076427,0.1424,95372.0,95363.0,0.35372]
[1735220079222,0.1424,95372.0,95363.0,0.34372]
[1735220080726,0.1454,95372.0,95355.0,0.00157291]
[1735220080927,0.10547219,95365.0,95342.0,0.052497]
[1735220081223,0.10547219,95365.0,95344.0,0.052496]
[1735220082541,0.10547219,95354.0,95344.0,0.052496]
[1735220082829,0.1378,95353.0,95344.0,0.052496]
[1735220083232,0.1378,95353.0,95344.0,0.053496]
[1735220084479,0.1418,95353.0,95344.0,0.053496]
[1735220084616,0.1418,95353.0,95344.0,0.052496]
[1735220084818,0.1418,95353.0,95344.0,0.053496]
[1735220086333,0.1418,95353.0,95344.0,0.001]
[1735220087134,0.2822,95353.0,95344.0,0.001]
[1735220087323,0.30896936,95353.0,95344.0,0.001]
[1735220089325,0.1468,95352.0,95344.0,0.001]
[1735220090623,0.1508,95352.0,95344.0,0.001]
[1735220095933,0.004,95352.0,95351.0,0.052492]
[1735220097244,0.003,95352.0,95351.0,0.053492]
[1735220098539,0.003,95352.0,95351.0,0.054492]
[1735220098937,0.001,95352.0,95351.0,0.353492]
[1735220099133,0.001,95352.0,95351.0,0.352492]
[1735220099338,0.001,95352.0,95351.0,0.354492]
[1735220099644,0.02391182,95362.0,95361.0,0.052487]
[1735220099830,0.21835054,95382.0,95368.0,0.052483]
[1735220100139,0.21835054,95382.0,95369.0,0.196882]
[1735220100344,0.21835054,95382.0,95370.0,0.15795419]
[1735220100545,0.21835054,95382.0,95370.0,0.10547219]
[1735220100737,0.21835054,95382.0,95370.0,0.25127219]
[1735220100940,0.21835054,95382.0,95370.0,0.65674438]
[1735220101339,0.21835054,95382.0,95380.0,0.052476]
[1735220101550,0.22135054,95382.0,95380.0,0.052476]
[1735220102042,0.21835054,95382.0,95380.0,0.052476]
[1735220102239,0.22135054,95382.0,95380.0,0.052476]
[1735220102440,0.22335054,95382.0,95380.0,0.052476]
[1735220102647,0.005,95382.0,95380.0,0.052476]
[1735220103845,0.003,95382.0,95380.0,0.053476]
[1735220112952,0.2919,95404.0,95387.0,0.052473]
[1735220113152,0.1397,95404.0,95394.0,0.10547219]
[1735220113468,0.49983794,95413.0,95403.0,0.052464]
[1735220113752,0.49899794,95413.0,95412.0,0.052459]
[1735220114351,0.21835054,95439.0,95404.0,0.35268]
[1735220114548,0.21835054,95439.0,95427.0,0.05245]
[1735220115159,0.07914954,95430.0,95427.0,0.05245]
[1735220115558,0.07914954,95430.0,95428.0,0.05245]
[1735220115761,0.05793,95430.0,95428.0,0.05245]
[1735220117555,0.05793,95430.0,95428.0,0.05345]
[1735220120948,0.05893,95430.0,95428.0,0.05345]
[1735220121661,0.05893,95430.0,95428.0,0.05445]
[1735220121855,0.05893,95430.0,95420.0,0.10547219]
[1735220123056,0.05893,95430.0,95428.0,0.05245]
[1735220123259,0.05893,95430.0,95428.0,0.05345]
[1735220123656,0.05793,95430.0,95428.0,0.05345]
[1735220124055,0.05793,95430.0,95428.0,0.05245]
[1735220124452,0.05893,95430.0,95428.0,0.05245]
[1735220124851,0.05893,95430.0,95428.0,0.05345]
[1735220127059,0.05893,95430.0,95429.0,0.151]
[1735220127752,0.05893,95430.0,95429.0,0.3252]
[1735220127952,0.1688003,95447.0,95446.0,0.05244]
[1735220130053,0.1688003,95447.0,95438.0,0.052444]
[1735220130255,0.1688003,95447.0,95432.0,0.1605]
[1735220130452,0.1698003,95447.0,95446.0,0.001]
[1735220130651,0.1708003,95447.0,95420.0,0.10547219]
[1735220130862,0.1708003,95447.0,95426.0,0.05402271]
[1735220131056,0.1708003,95447.0,95428.0,0.05245]
[1735220131363,0.10547219,95440.0,95414.0,0.052457]
[1735220131650,0.10547219,95424.0,95390.0,0.10547219]
[1735220131862,0.10547219,95410.0,95404.0,0.052463]
[1735220132360,0.10547219,95410.0,95384.0,0.1605]
[1735220132557,0.10547219,95410.0,95396.0,0.052467]
[1735220132953,0.10647219,95410.0,95396.0,0.052467]
[1735220133567,0.10547219,95410.0,95392.0,0.00157221]
[1735220133959,0.10547219,95410.0,95383.0,0.18856009]
[1735220133960,0.21094438,95402.0,95396.0,0.002]
[1735220134060,0.21094438,95402.0,95379.0,0.052477]
[1735220134364,0.10547219,95393.0,95379.0,0.052477]
[1735220134680,0.1575,95392.0,95379.0,0.052477]
[1735220136067,0.1615,95392.0,95379.0,0.052477]
[1735220136269,0.1615,95392.0,95371.0,0.052481]
[1735220136471,0.10547219,95380.0,95371.0,0.052481]
[1735220136860,0.1583,95379.0,95371.0,0.052481]
[1735220137058,0.1583,95379.0,95373.0,0.05248]
[1735220138163,0.1583,95379.0,95378.0,0.052478]
[1735220139260,0.1583,95379.0,95371.0,0.001]
[1735220139461,0.1623,95379.0,95371.0,0.001]
[1735220139965,0.1623,95379.0,95368.0,0.0540556]
[1735220140166,0.1623,95379.0,95373.0,0.001]
[1735220140370,0.183083,95379.0,95373.0,0.001]
[1735220140872,0.183083,95379.0,95371.0,0.001]
[1735220141063,0.183083,95379.0,95372.0,0.052481]
[1735220141274,0.183083,95379.0,95373.0,0.05248]
[1735220141872,0.183083,95379.0,95373.0,0.001]
[1735220142184,0.1588,95391.0,95382.0,0.052475]
[1735220142561,0.17945163,95391.0,95382.0,0.052475]
[1735220142872,0.17945163,95391.0,95380.0,0.10547219]
[1735220142873,0.02065163,95391.0,95384.0,0.052474]
[1735220143119,0.1575,95392.0,95384.0,0.052474]
[1735220143469,0.006,95391.0,95384.0,0.052474]
[1735220143675,0.006,95391.0,95382.0,0.001]
[1735220143972,0.006,95391.0,95390.0,0.052471]
[1735220145062,0.007,95391.0,95390.0,0.052471]
[1735220145464,0.001,95392.0,95390.0,0.052471]
[1735220145764,0.009,95391.0,95390.0,0.053471]
[1735220146666,0.01,95392.0,95390.0,0.053471]
[1735220146866,0.002,95391.0,95390.0,0.053471]
[1735220147573,0.009,95392.0,95390.0,0.053471]
[1735220147768,0.009,95392.0,95390.0,0.055471]
[1735220148175,0.008,95391.0,95390.0,0.003]
[1735220148466,0.008,95391.0,95390.0,0.055471]
[1735220148869,0.002,95392.0,95391.0,0.05247]
[1735220149973,0.001,95391.0,95390.0,0.053471]
[1735220150175,0.001,95391.0,95390.0,0.353471]
[1735220150675,0.001,95391.0,95390.0,0.352471]
[1735220150875,0.001,95391.0,95390.0,0.052471]
[1735220151377,0.001,95391.0,95390.0,0.056471]
[1735220151578,0.02101364,95409.0,95403.0,0.052463]
[1735220151876,0.4577,95429.0,95403.0,0.052463]
[1735220152079,0.4577,95429.0,95404.0,0.052463]
[1735220152276,0.4577,95429.0,95405.0,0.052462]
[1735220153277,0.002,95409.0,95399.0,0.10547219]
[1735220153467,0.002,95409.0,95401.0,0.052465]
[1735220153668,0.002,95409.0,95399.0,0.10547219]
[1735220154072,0.002,95409.0,95407.0,0.052461]
[1735220154677,0.4577,95429.0,95399.0,0.21294438]
[1735220154879,0.4597,95429.0,95411.0,0.052459]
[1735220155269,0.4597,95429.0,95415.0,0.052457]
[1735220155669,0.4577,95429.0,95415.0,0.052457]
[1735220156274,0.4627,95429.0,95415.0,0.052457]
[1735220157290,0.4637,95429.0,95415.0,0.052457]
[1735220157784,0.47971752,95429.0,95415.0,0.052457]
[1735220157986,0.48671752,95429.0,95415.0,0.053457]
[1735220158181,0.48671752,95429.0,95422.0,0.052453]
[1735220158882,0.48671752,95429.0,95425.0,0.052451]
[1735220159181,0.48671752,95429.0,95427.0,0.05245]
[1735220159389,0.32061752,95429.0,95427.0,0.05245]
[1735220159585,0.33061752,95429.0,95427.0,0.05245]
[1735220160189,0.32861752,95429.0,95427.0,0.05245]
[1735220160388,0.33161752,95429.0,95427.0,0.05245]
[1735220161787,0.33161752,95429.0,95427.0,0.05345]
[1735220162586,0.33161752,95429.0,95427.0,0.001]
[1735220165290,0.33161752,95429.0,95427.0,0.05345]
[1735220168893,0.33161752,95429.0,95427.0,0.001]
[1735220169686,0.33161752,95429.0,95393.0,0.18856009]
[1735220169969,0.33161752,95429.0,95396.0,0.052467]
[1735220169970,0.10547219,95420.0,95396.0,0.052467]
[1735220170078,0.154,95419.0,95387.0,0.18856009]
[1735220170286,0.154,95419.0,95400.0,0.15793719]
[1735220170488,0.154,95419.0,95390.0,0.10547219]
[1735220170686,0.10547219,95410.0,95387.0,0.18856009]
[1735220170886,0.10547219,95410.0,95400.0,0.002]
[1735220171393,0.10547219,95410.0,95400.0,0.054465]
[1735220171587,0.10547219,95410.0,95401.0,0.052465]